Workbook

Sheet Лист1
O2: МИН | P2: 30
O3: МАКС | P3: 2060
B9: 0 | C9: 0 | D9: =E9-0.3 -> -4.8 | E9: -4.5 | F9: 0 | G9: 4.5 | H9: =I9*0.05 -> 0.45 | I9: =-E9+G9 -> 9 | J9: =I9*0.1 -> 0.9 | K9: =I9 -> 9 | L9: =G9+0.3 -> 4.8 | M9: =(I9+0.6)*0.12 -> 1.152 | N9: 0 | O9: =AND(B9<=$P$3,B9>=$P$2) -> FALSE
B10: 20 | C10: =B10-B9 -> 20 | D10: =E10-0.3 -> -4.8 | E10: -4.5 | F10: 0 | G10: 4.5 | H10: 0.45 | I10: 9 | J10: 0.9 | K10: 9 | L10: =G10+0.3 -> 4.8 | M10: 1.152 | N10: =((M10+M9)/2)*C10 -> 23.04 | O10: =AND(B10<=$P$3,B10>=$P$2) -> FALSE
B11: 40 | C11: 20 | D11: -4.8 | E11: -4.5 | F11: 0 | G11: 4.5 | H11: 0.45 | I11: 9 | J11: 0.9 | K11: 9 | L11: 4.8 | M11: 1.152 | N11: 23.04 | O11: TRUE
B12: 60 | C12: 20 | D12: -4.8 | E12: -4.5 | F12: 0 | G12: 4.5 | H12: 0.45 | I12: 9 | J12: 0.9 | K12: 9 | L12: 4.8 | M12: 1.152 | N12: 23.04 | O12: TRUE
B13: 80 | C13: 20 | D13: -4.8 | E13: -4.5 | F13: 0 | G13: 5.11 | H13: 0.4805 | I13: 9.61 | J13: 0.961 | K13: 9.61 | L13: 5.41 | M13: 1.2252 | N13: 23.772 | O13: TRUE
B14: 100 | C14: 20 | D14: -4.8 | E14: -4.5 | F14: 0 | G14: 5.277 | H14: 0.48885 | I14: 9.777 | J14: 0.9777 | K14: 9.777 | L14: 5.577 | M14: 1.24524 | N14: 24.7044 | O14: TRUE
B15: 120 | C15: 20 | D15: -4.8 | E15: -4.5 | F15: 0 | G15: 5.529 | H15: 0.50145 | I15: 10.029 | J15: 1.0029 | K15: 10.029 | L15: 5.829 | M15: 1.27548 | N15: 25.2072 | O15: TRUE
B16: 140 | C16: 20 | D16: -4.8 | E16: -4.5 | F16: 0 | G16: 6.878 | H16: 0.5689 | I16: 11.378 | J16: 1.1378 | K16: 11.378 | L16: 7.178 | M16: 1.43736 | N16: 27.1284 | O16: TRUE
B17: 160 | C17: 20 | D17: -4.8 | E17: -4.5 | F17: 0 | G17: 7.961 | H17: 0.62305 | I17: 12.461 | J17: 1.2461 | K17: 12.461 | L17: 8.261 | M17: 1.56732 | N17: 30.0468 | O17: TRUE
B18: 180 | C18: 20 | D18: -4.8 | E18: -4.5 | F18: 0 | G18: 8.613 | H18: 0.65565 | I18: 13.113 | J18: 1.3113 | K18: 13.113 | L18: 8.913 | M18: 1.64556 | N18: 32.1288 | O18: TRUE
B19: 200 | C19: 20 | D19: -4.8 | E19: -4.5 | F19: 0 | G19: 8.813 | H19: 0.66565 | I19: 13.313 | J19: 1.3313 | K19: 13.313 | L19: 9.113 | M19: 1.66956 | N19: 33.1512 | O19: TRUE
B20: 220 | C20: 20 | D20: -4.8 | E20: -4.5 | F20: 0 | G20: 8.778 | H20: 0.6639 | I20: 13.278 | J20: 1.3278 | K20: 13.278 | L20: 9.078 | M20: 1.66536 | N20: 33.3492 | O20: TRUE
B21: 240 | C21: 20 | D21: -4.8 | E21: -4.5 | F21: 0 | G21: 8.779 | H21: 0.66395 | I21: 13.279 | J21: 1.3279 | K21: 13.279 | L21: 9.079 | M21: 1.66548 | N21: 33.3084 | O21: TRUE
B22: 260 | C22: 20 | D22: -4.8 | E22: -4.5 | F22: 0 | G22: 8.856 | H22: 0.6678 | I22: 13.356 | J22: 1.3356 | K22: 13.356 | L22: 9.156 | M22: 1.67472 | N22: 33.402 | O22: TRUE
B23: 280 | C23: 20 | D23: -4.809 | E23: -4.509 | F23: 0 | G23: 9.876 | H23: 0.71925 | I23: 14.385 | J23: 1.4385 | K23: 14.385 | L23: 10.176 | M23: 1.7982 | N23: 34.7292 | O23: TRUE
B24: 300 | C24: 20 | D24: -5.171 | E24: -4.871 | F24: 0 | G24: 11 | H24: 0.79355 | I24: 15.871 | J24: 1.5871 | K24: 15.871 | L24: 11.3 | M24: 1.97652 | N24: 37.7472 | O24: TRUE
B25: 320 | C25: 20 | D25: -6.031 | E25: -5.731 | F25: 0 | G25: 11.612 | H25: 0.86715 | I25: 17.343 | J25: 1.7343 | K25: 17.343 | L25: 11.912 | M25: 2.15316 | N25: 41.2968 | O25: TRUE
B26: 340 | C26: 20 | D26: -6.939 | E26: -6.639 | F26: 0 | G26: 11.552 | H26: 0.90955 | I26: 18.191 | J26: 1.8191 | K26: 18.191 | L26: 11.852 | M26: 2.25492 | N26: 44.0808 | O26: TRUE
B27: 360 | C27: 20 | D27: -6.973 | E27: -6.673 | F27: 0 | G27: 11.552 | H27: 0.91125 | I27: 18.225 | J27: 1.8225 | K27: 18.225 | L27: 11.852 | M27: 2.259 | N27: 45.1392 | O27: TRUE
B28: 380 | C28: 20 | D28: -7.05 | E28: -6.75 | F28: 0 | G28: 11.551 | H28: 0.91505 | I28: 18.301 | J28: 1.8301 | K28: 18.301 | L28: 11.851 | M28: 2.26812 | N28: 45.2712 | O28: TRUE
B29: 400 | C29: 20 | D29: -7.05 | E29: -6.75 | F29: 0 | G29: 11.555 | H29: 0.91525 | I29: 18.305 | J29: 1.8305 | K29: 18.305 | L29: 11.855 | M29: 2.2686 | N29: 45.3672 | O29: TRUE
B30: 420 | C30: 20 | D30: -7.05 | E30: -6.75 | F30: 0 | G30: 11.061 | H30: 0.89055 | I30: 17.811 | J30: 1.7811 | K30: 17.811 | L30: 11.361 | M30: 2.20932 | N30: 44.7792 | O30: TRUE
B31: 440 | C31: 20 | D31: -7.05 | E31: -6.75 | F31: 0 | G31: 10.741 | H31: 0.87455 | I31: 17.491 | J31: 1.7491 | K31: 17.491 | L31: 11.041 | M31: 2.17092 | N31: 43.8024 | O31: TRUE
B32: 460 | C32: 20 | D32: -7.05 | E32: -6.75 | F32: 0 | G32: 10.74 | H32: 0.8745 | I32: 17.49 | J32: 1.749 | K32: 17.49 | L32: 11.04 | M32: 2.1708 | N32: 43.4172 | O32: TRUE
B33: 480 | C33: 20 | D33: -7.05 | E33: -6.75 | F33: 0 | G33: 10.74 | H33: 0.8745 | I33: 17.49 | J33: 1.749 | K33: 17.49 | L33: 11.04 | M33: 2.1708 | N33: 43.416 | O33: TRUE
B34: 500 | C34: 20 | D34: -7.05 | E34: -6.75 | F34: 0 | G34: 10.74 | H34: 0.8745 | I34: 17.49 | J34: 1.749 | K34: 17.49 | L34: 11.04 | M34: 2.1708 | N34: 43.416 | O34: TRUE
B35: 520 | C35: 20 | D35: -7.029 | E35: -6.729 | F35: 0 | G35: 10.74 | H35: 0.87345 | I35: 17.469 | J35: 1.7469 | K35: 17.469 | L35: 11.04 | M35: 2.16828 | N35: 43.3908 | O35: TRUE
B36: 540 | C36: 20 | D36: -5.915 | E36: -5.615 | F36: 0 | G36: 10.74 | H36: 0.81775 | I36: 16.355 | J36: 1.6355 | K36: 16.355 | L36: 11.04 | M36: 2.0346 | N36: 42.0288 | O36: TRUE
B37: 560 | C37: 20 | D37: -5.053 | E37: -4.753 | F37: 0 | G37: 10.394 | H37: 0.75735 | I37: 15.147 | J37: 1.5147 | K37: 15.147 | L37: 10.694 | M37: 1.88964 | N37: 39.2424 | O37: TRUE
B38: 580 | C38: 20 | D38: -4.8 | E38: -4.5 | F38: 0 | G38: 9.452 | H38: 0.6976 | I38: 13.952 | J38: 1.3952 | K38: 13.952 | L38: 9.752 | M38: 1.74624 | N38: 36.3588 | O38: TRUE
B39: 600 | C39: 20 | D39: -4.8 | E39: -4.5 | F39: 0 | G39: 8.206 | H39: 0.6353 | I39: 12.706 | J39: 1.2706 | K39: 12.706 | L39: 8.506 | M39: 1.59672 | N39: 33.4296 | O39: TRUE
B40: 620 | C40: 20 | D40: -4.8 | E40: -4.5 | F40: 0 | G40: 7.127 | H40: 0.58135 | I40: 11.627 | J40: 1.1627 | K40: 11.627 | L40: 7.427 | M40: 1.46724 | N40: 30.6396 | O40: TRUE
B41: 640 | C41: 20 | D41: -4.8 | E41: -4.5 | F41: 0 | G41: 6.042 | H41: 0.5271 | I41: 10.542 | J41: 1.0542 | K41: 10.542 | L41: 6.342 | M41: 1.33704 | N41: 28.0428 | O41: TRUE
B42: 660 | C42: 20 | D42: -4.8 | E42: -4.5 | F42: 0 | G42: 5.05 | H42: 0.4775 | I42: 9.55 | J42: 0.955 | K42: 9.55 | L42: 5.35 | M42: 1.218 | N42: 25.5504 | O42: TRUE
B43: 680 | C43: 20 | D43: -4.8 | E43: -4.5 | F43: 0 | G43: 5.05 | H43: 0.4775 | I43: 9.55 | J43: 0.955 | K43: 9.55 | L43: 5.35 | M43: 1.218 | N43: 24.36 | O43: TRUE
B44: 700 | C44: 20 | D44: -4.8 | E44: -4.5 | F44: 0 | G44: 5.05 | H44: 0.4775 | I44: 9.55 | J44: 0.955 | K44: 9.55 | L44: 5.35 | M44: 1.218 | N44: 24.36 | O44: TRUE
B45: 720 | C45: 20 | D45: -4.8 | E45: -4.5 | F45: 0 | G45: 5.05 | H45: 0.4775 | I45: 9.55 | J45: 0.955 | K45: 9.55 | L45: 5.35 | M45: 1.218 | N45: 24.36 | O45: TRUE
B46: 740 | C46: 20 | D46: -4.8 | E46: -4.5 | F46: 0 | G46: 5.05 | H46: 0.4775 | I46: 9.55 | J46: 0.955 | K46: 9.55 | L46: 5.35 | M46: 1.218 | N46: 24.36 | O46: TRUE
B47: 760 | C47: 20 | D47: -4.8 | E47: -4.5 | F47: 0 | G47: 5.05 | H47: 0.4775 | I47: 9.55 | J47: 0.955 | K47: 9.55 | L47: 5.35 | M47: 1.218 | N47: 24.36 | O47: TRUE
B48: 780 | C48: 20 | D48: -4.8 | E48: -4.5 | F48: 0 | G48: 5.05 | H48: 0.4775 | I48: 9.55 | J48: 0.955 | K48: 9.55 | L48: 5.35 | M48: 1.218 | N48: 24.36 | O48: TRUE
B49: 800 | C49: 20 | D49: -4.8 | E49: -4.5 | F49: 0 | G49: 5.05 | H49: 0.4775 | I49: 9.55 | J49: 0.955 | K49: 9.55 | L49: 5.35 | M49: 1.218 | N49: 24.36 | O49: TRUE
B50: 820 | C50: 20 | D50: -4.8 | E50: -4.5 | F50: 0 | G50: 5.05 | H50: 0.4775 | I50: 9.55 | J50: 0.955 | K50: 9.55 | L50: 5.35 | M50: 1.218 | N50: 24.36 | O50: TRUE
B51: 840 | C51: 20 | D51: -4.8 | E51: -4.5 | F51: 0 | G51: 5.05 | H51: 0.4775 | I51: 9.55 | J51: 0.955 | K51: 9.55 | L51: 5.35 | M51: 1.218 | N51: 24.36 | O51: TRUE
B52: 860 | C52: 20 | D52: -4.8 | E52: -4.5 | F52: 0 | G52: 5.05 | H52: 0.4775 | I52: 9.55 | J52: 0.955 | K52: 9.55 | L52: 5.35 | M52: 1.218 | N52: 24.36 | O52: TRUE
B53: 880 | C53: 20 | D53: -4.8 | E53: -4.5 | F53: 0 | G53: 5.05 | H53: 0.4775 | I53: 9.55 | J53: 0.955 | K53: 9.55 | L53: 5.35 | M53: 1.218 | N53: 24.36 | O53: TRUE
B54: 900 | C54: 20 | D54: -4.8 | E54: -4.5 | F54: 0 | G54: 5.05 | H54: 0.4775 | I54: 9.55 | J54: 0.955 | K54: 9.55 | L54: 5.35 | M54: 1.218 | N54: 24.36 | O54: TRUE
B55: 920 | C55: 20 | D55: -4.8 | E55: -4.5 | F55: 0 | G55: 5.05 | H55: 0.4775 | I55: 9.55 | J55: 0.955 | K55: 9.55 | L55: 5.35 | M55: 1.218 | N55: 24.36 | O55: TRUE
B56: 940 | C56: 20 | D56: -4.8 | E56: -4.5 | F56: 0 | G56: 4.99 | H56: 0.4745 | I56: 9.49 | J56: 0.949 | K56: 9.49 | L56: 5.29 | M56: 1.2108 | N56: 24.288 | O56: TRUE
B57: 960 | C57: 20 | D57: -4.8 | E57: -4.5 | F57: 0 | G57: 4.9 | H57: 0.47 | I57: 9.4 | J57: 0.94 | K57: 9.4 | L57: 5.2 | M57: 1.2 | N57: 24.108 | O57: TRUE
B58: 980 | C58: 20 | D58: -4.8 | E58: -4.5 | F58: 0 | G58: 4.81 | H58: 0.4655 | I58: 9.31 | J58: 0.931 | K58: 9.31 | L58: 5.11 | M58: 1.1892 | N58: 23.892 | O58: TRUE
B59: 1000 | C59: 20 | D59: -4.8 | E59: -4.5 | F59: 0 | G59: 4.72 | H59: 0.461 | I59: 9.22 | J59: 0.922 | K59: 9.22 | L59: 5.02 | M59: 1.1784 | N59: 23.676 | O59: TRUE
B60: 1020 | C60: 20 | D60: -4.8 | E60: -4.5 | F60: 0 | G60: 4.63 | H60: 0.4565 | I60: 9.13 | J60: 0.913 | K60: 9.13 | L60: 4.93 | M60: 1.1676 | N60: 23.46 | O60: TRUE
B61: 1040 | C61: 20 | D61: -4.8 | E61: -4.5 | F61: 0 | G61: 4.53 | H61: 0.4515 | I61: 9.03 | J61: 0.903 | K61: 9.03 | L61: 4.83 | M61: 1.1556 | N61: 23.232 | O61: TRUE
B62: 1060 | C62: 20 | D62: -4.86 | E62: -4.56 | F62: 0 | G62: 4.5 | H62: 0.453 | I62: 9.06 | J62: 0.906 | K62: 9.06 | L62: 4.8 | M62: 1.1592 | N62: 23.148 | O62: TRUE
B63: 1080 | C63: 20 | D63: -4.95 | E63: -4.65 | F63: 0 | G63: 4.5 | H63: 0.4575 | I63: 9.15 | J63: 0.915 | K63: 9.15 | L63: 4.8 | M63: 1.17 | N63: 23.292 | O63: TRUE
B64: 1100 | C64: 20 | D64: -5.04 | E64: -4.74 | F64: 0 | G64: 4.5 | H64: 0.462 | I64: 9.24 | J64: 0.924 | K64: 9.24 | L64: 4.8 | M64: 1.1808 | N64: 23.508 | O64: TRUE
B65: 1120 | C65: 20 | D65: -5.13 | E65: -4.83 | F65: 0 | G65: 4.5 | H65: 0.4665 | I65: 9.33 | J65: 0.933 | K65: 9.33 | L65: 4.8 | M65: 1.1916 | N65: 23.724 | O65: TRUE
B66: 1140 | C66: 20 | D66: -5.22 | E66: -4.92 | F66: 0 | G66: 4.5 | H66: 0.471 | I66: 9.42 | J66: 0.942 | K66: 9.42 | L66: 4.8 | M66: 1.2024 | N66: 23.94 | O66: TRUE
B67: 1160 | C67: 20 | D67: -5.32 | E67: -5.02 | F67: 0 | G67: 4.5 | H67: 0.476 | I67: 9.52 | J67: 0.952 | K67: 9.52 | L67: 4.8 | M67: 1.2144 | N67: 24.168 | O67: TRUE
B68: 1180 | C68: 20 | D68: -5.35 | E68: -5.05 | F68: 0 | G68: 4.5 | H68: 0.4775 | I68: 9.55 | J68: 0.955 | K68: 9.55 | L68: 4.8 | M68: 1.218 | N68: 24.324 | O68: TRUE
B69: 1200 | C69: 20 | D69: -5.35 | E69: -5.05 | F69: 0 | G69: 4.5 | H69: 0.4775 | I69: 9.55 | J69: 0.955 | K69: 9.55 | L69: 4.8 | M69: 1.218 | N69: 24.36 | O69: TRUE
B70: 1220 | C70: 20 | D70: -5.35 | E70: -5.05 | F70: 0 | G70: 4.5 | H70: 0.4775 | I70: 9.55 | J70: 0.955 | K70: 9.55 | L70: 4.8 | M70: 1.218 | N70: 24.36 | O70: TRUE
B71: 1240 | C71: 20 | D71: -5.35 | E71: -5.05 | F71: 0 | G71: 4.5 | H71: 0.4775 | I71: 9.55 | J71: 0.955 | K71: 9.55 | L71: 4.8 | M71: 1.218 | N71: 24.36 | O71: TRUE
B72: 1260 | C72: 20 | D72: -5.35 | E72: -5.05 | F72: 0 | G72: 4.5 | H72: 0.4775 | I72: 9.55 | J72: 0.955 | K72: 9.55 | L72: 4.8 | M72: 1.218 | N72: 24.36 | O72: TRUE
B73: 1280 | C73: 20 | D73: -5.35 | E73: -5.05 | F73: 0 | G73: 4.5 | H73: =I73*0.05 -> 0.4775 | I73: =-E73+G73 -> 9.55 | J73: =I73*0.1 -> 0.955 | K73: =I73 -> 9.55 | L73: 4.8 | M73: =(I73+0.6)*0.12 -> 1.218 | N73: 24.36 | O73: TRUE
B74: 1300 | C74: =B74-B73 -> 20 | D74: =E74-0.3 -> -5.35 | E74: -5.05 | F74: 0 | G74: 4.5 | H74: 0.4775 | I74: 9.55 | J74: 0.955 | K74: 9.55 | L74: =G74+0.3 -> 4.8 | M74: 1.218 | N74: =((M74+M73)/2)*C74 -> 24.36 | O74: =AND(B74<=$P$3,B74>=$P$2) -> TRUE
B75: 1320 | C75: 20 | D75: -5.35 | E75: -5.05 | F75: 0 | G75: 4.5 | H75: 0.4775 | I75: 9.55 | J75: 0.955 | K75: 9.55 | L75: 4.8 | M75: 1.218 | N75: 24.36 | O75: TRUE
B76: 1340 | C76: 20 | D76: -5.35 | E76: -5.05 | F76: 0 | G76: 4.5 | H76: 0.4775 | I76: 9.55 | J76: 0.955 | K76: 9.55 | L76: 4.8 | M76: 1.218 | N76: 24.36 | O76: TRUE
B77: 1360 | C77: 20 | D77: -5.35 | E77: -5.05 | F77: 0 | G77: 4.5 | H77: 0.4775 | I77: 9.55 | J77: 0.955 | K77: 9.55 | L77: 4.8 | M77: 1.218 | N77: 24.36 | O77: TRUE
B78: 1380 | C78: 20 | D78: -5.35 | E78: -5.05 | F78: 0 | G78: 4.5 | H78: 0.4775 | I78: 9.55 | J78: 0.955 | K78: 9.55 | L78: 4.8 | M78: 1.218 | N78: 24.36 | O78: TRUE
B79: 1400 | C79: 20 | D79: -5.35 | E79: -5.05 | F79: 0 | G79: 4.5 | H79: 0.4775 | I79: 9.55 | J79: 0.955 | K79: 9.55 | L79: 4.8 | M79: 1.218 | N79: 24.36 | O79: TRUE
B80: 1420 | C80: 20 | D80: -5.35 | E80: -5.05 | F80: 0 | G80: 4.5 | H80: 0.4775 | I80: 9.55 | J80: 0.955 | K80: 9.55 | L80: 4.8 | M80: 1.218 | N80: 24.36 | O80: TRUE
B81: 1440 | C81: 20 | D81: -5.35 | E81: -5.05 | F81: 0 | G81: 4.5 | H81: 0.4775 | I81: 9.55 | J81: 0.955 | K81: 9.55 | L81: 4.8 | M81: 1.218 | N81: 24.36 | O81: TRUE
B82: 1460 | C82: 20 | D82: -5.35 | E82: -5.05 | F82: 0 | G82: 4.5 | H82: 0.4775 | I82: 9.55 | J82: 0.955 | K82: 9.55 | L82: 4.8 | M82: 1.218 | N82: 24.36 | O82: TRUE
B83: 1480 | C83: 20 | D83: -5.35 | E83: -5.05 | F83: 0 | G83: 4.5 | H83: 0.4775 | I83: 9.55 | J83: 0.955 | K83: 9.55 | L83: 4.8 | M83: 1.218 | N83: 24.36 | O83: TRUE
B84: 1500 | C84: 20 | D84: -5.35 | E84: -5.05 | F84: 0 | G84: 4.5 | H84: 0.4775 | I84: 9.55 | J84: 0.955 | K84: 9.55 | L84: 4.8 | M84: 1.218 | N84: 24.36 | O84: TRUE
B85: 1520 | C85: 20 | D85: -5.35 | E85: -5.05 | F85: 0 | G85: 4.5 | H85: 0.4775 | I85: 9.55 | J85: 0.955 | K85: 9.55 | L85: 4.8 | M85: 1.218 | N85: 24.36 | O85: TRUE
B86: 1540 | C86: 20 | D86: -5.35 | E86: -5.05 | F86: 0 | G86: 4.5 | H86: 0.4775 | I86: 9.55 | J86: 0.955 | K86: 9.55 | L86: 4.8 | M86: 1.218 | N86: 24.36 | O86: TRUE
B87: 1560 | C87: 20 | D87: -5.35 | E87: -5.05 | F87: 0 | G87: 4.5 | H87: 0.4775 | I87: 9.55 | J87: 0.955 | K87: 9.55 | L87: 4.8 | M87: 1.218 | N87: 24.36 | O87: TRUE
B88: 1580 | C88: 20 | D88: -5.35 | E88: -5.05 | F88: 0 | G88: 4.5 | H88: 0.4775 | I88: 9.55 | J88: 0.955 | K88: 9.55 | L88: 4.8 | M88: 1.218 | N88: 24.36 | O88: TRUE
B89: 1600 | C89: 20 | D89: -5.35 | E89: -5.05 | F89: 0 | G89: 4.5 | H89: 0.4775 | I89: 9.55 | J89: 0.955 | K89: 9.55 | L89: 4.8 | M89: 1.218 | N89: 24.36 | O89: TRUE
B90: 1620 | C90: 20 | D90: -5.35 | E90: -5.05 | F90: 0 | G90: 4.5 | H90: 0.4775 | I90: 9.55 | J90: 0.955 | K90: 9.55 | L90: 4.8 | M90: 1.218 | N90: 24.36 | O90: TRUE
B91: 1640 | C91: 20 | D91: -5.35 | E91: -5.05 | F91: 0 | G91: 4.5 | H91: 0.4775 | I91: 9.55 | J91: 0.955 | K91: 9.55 | L91: 4.8 | M91: 1.218 | N91: 24.36 | O91: TRUE
B92: 1660 | C92: 20 | D92: -5.35 | E92: -5.05 | F92: 0 | G92: 4.5 | H92: 0.4775 | I92: 9.55 | J92: 0.955 | K92: 9.55 | L92: 4.8 | M92: 1.218 | N92: 24.36 | O92: TRUE
B93: 1680 | C93: 20 | D93: -5.35 | E93: -5.05 | F93: 0 | G93: 4.5 | H93: 0.4775 | I93: 9.55 | J93: 0.955 | K93: 9.55 | L93: 4.8 | M93: 1.218 | N93: 24.36 | O93: TRUE
B94: 1700 | C94: 20 | D94: -5.35 | E94: -5.05 | F94: 0 | G94: 4.5 | H94: 0.4775 | I94: 9.55 | J94: 0.955 | K94: 9.55 | L94: 4.8 | M94: 1.218 | N94: 24.36 | O94: TRUE
B95: 1720 | C95: 20 | D95: -5.35 | E95: -5.05 | F95: 0 | G95: 4.5 | H95: 0.4775 | I95: 9.55 | J95: 0.955 | K95: 9.55 | L95: 4.8 | M95: 1.218 | N95: 24.36 | O95: TRUE
B96: 1740 | C96: 20 | D96: -5.35 | E96: -5.05 | F96: 0 | G96: 4.5 | H96: 0.4775 | I96: 9.55 | J96: 0.955 | K96: 9.55 | L96: 4.8 | M96: 1.218 | N96: 24.36 | O96: TRUE
B97: 1760 | C97: 20 | D97: -5.35 | E97: -5.05 | F97: 0 | G97: 4.5 | H97: 0.4775 | I97: 9.55 | J97: 0.955 | K97: 9.55 | L97: 4.8 | M97: 1.218 | N97: 24.36 | O97: TRUE
B98: 1780 | C98: 20 | D98: -5.35 | E98: -5.05 | F98: 0 | G98: 4.5 | H98: 0.4775 | I98: 9.55 | J98: 0.955 | K98: 9.55 | L98: 4.8 | M98: 1.218 | N98: 24.36 | O98: TRUE
B99: 1800 | C99: 20 | D99: -5.35 | E99: -5.05 | F99: 0 | G99: 4.5 | H99: 0.4775 | I99: 9.55 | J99: 0.955 | K99: 9.55 | L99: 4.8 | M99: 1.218 | N99: 24.36 | O99: TRUE
B100: 1820 | C100: 20 | D100: -5.35 | E100: -5.05 | F100: 0 | G100: 4.5 | H100: 0.4775 | I100: 9.55 | J100: 0.955 | K100: 9.55 | L100: 4.8 | M100: 1.218 | N100: 24.36 | O100: TRUE
B101: 1840 | C101: 20 | D101: -5.35 | E101: -5.05 | F101: 0 | G101: 4.5 | H101: 0.4775 | I101: 9.55 | J101: 0.955 | K101: 9.55 | L101: 4.8 | M101: 1.218 | N101: 24.36 | O101: TRUE
B102: 1860 | C102: 20 | D102: -5.35 | E102: -5.05 | F102: 0 | G102: 4.5 | H102: 0.4775 | I102: 9.55 | J102: 0.955 | K102: 9.55 | L102: 4.8 | M102: 1.218 | N102: 24.36 | O102: TRUE
B103: 1880 | C103: 20 | D103: -5.32 | E103: -5.02 | F103: 0 | G103: 4.5 | H103: 0.476 | I103: 9.52 | J103: 0.952 | K103: 9.52 | L103: 4.8 | M103: 1.2144 | N103: 24.324 | O103: TRUE
B104: 1900 | C104: 20 | D104: -5.22 | E104: -4.92 | F104: 0 | G104: 4.5 | H104: 0.471 | I104: 9.42 | J104: 0.942 | K104: 9.42 | L104: 4.8 | M104: 1.2024 | N104: 24.168 | O104: TRUE
B105: 1920 | C105: 20 | D105: -5.13 | E105: -4.83 | F105: 0 | G105: 4.5 | H105: 0.4665 | I105: 9.33 | J105: 0.933 | K105: 9.33 | L105: 4.8 | M105: 1.1916 | N105: 23.94 | O105: TRUE
B106: 1940 | C106: 20 | D106: -5.04 | E106: -4.74 | F106: 0 | G106: 4.5 | H106: 0.462 | I106: 9.24 | J106: 0.924 | K106: 9.24 | L106: 4.8 | M106: 1.1808 | N106: 23.724 | O106: TRUE
B107: 1960 | C107: 20 | D107: -4.95 | E107: -4.65 | F107: 0 | G107: 4.5 | H107: 0.4575 | I107: 9.15 | J107: 0.915 | K107: 9.15 | L107: 4.8 | M107: 1.17 | N107: 23.508 | O107: TRUE
B108: 1980 | C108: 20 | D108: -4.86 | E108: -4.56 | F108: 0 | G108: 4.5 | H108: 0.453 | I108: 9.06 | J108: 0.906 | K108: 9.06 | L108: 4.8 | M108: 1.1592 | N108: 23.292 | O108: TRUE
B109: 2000 | C109: 20 | D109: -4.8 | E109: -4.5 | F109: 0 | G109: 4.5 | H109: 0.45 | I109: 9 | J109: 0.9 | K109: 9 | L109: 4.8 | M109: 1.152 | N109: 23.112 | O109: TRUE
B110: 2020 | C110: 20 | D110: -4.8 | E110: -4.5 | F110: 0 | G110: 4.5 | H110: 0.45 | I110: 9 | J110: 0.9 | K110: 9 | L110: 4.8 | M110: 1.152 | N110: 23.04 | O110: TRUE
B111: 2040 | C111: 20 | D111: -4.8 | E111: -4.5 | F111: 0 | G111: 4.5 | H111: 0.45 | I111: 9 | J111: 0.9 | K111: 9 | L111: 4.8 | M111: 1.152 | N111: 23.04 | O111: TRUE
B112: 2060 | C112: 20 | D112: -4.8 | E112: -4.5 | F112: 0 | G112: 4.5 | H112: 0.45 | I112: 9 | J112: 0.9 | K112: 9 | L112: 4.8 | M112: 1.152 | N112: 23.04 | O112: TRUE
B113: 2080 | C113: 20 | D113: -4.8 | E113: -4.5 | F113: 0 | G113: 4.5 | H113: 0.45 | I113: 9 | J113: 0.9 | K113: 9 | L113: 4.8 | M113: 1.152 | N113: 23.04 | O113: FALSE
B114: 2100 | C114: 20 | D114: -4.8 | E114: -4.5 | F114: 0 | G114: 4.5 | H114: 0.45 | I114: 9 | J114: 0.9 | K114: 9 | L114: 4.8 | M114: 1.152 | N114: 23.04 | O114: FALSE
B115: 2120 | C115: 20 | D115: -4.8 | E115: -4.5 | F115: 0 | G115: 4.5 | H115: 0.45 | I115: 9 | J115: 0.9 | K115: 9 | L115: 4.8 | M115: 1.152 | N115: 23.04 | O115: FALSE
B116: 2140 | C116: 20 | D116: -4.8 | E116: -4.5 | F116: 0 | G116: 4.5 | H116: 0.45 | I116: 9 | J116: 0.9 | K116: 9 | L116: 4.8 | M116: 1.152 | N116: 23.04 | O116: FALSE
B117: 2160 | C117: 20 | D117: -4.8 | E117: -4.5 | F117: 0 | G117: 4.5 | H117: 0.45 | I117: 9 | J117: 0.9 | K117: 9 | L117: 4.8 | M117: 1.152 | N117: 23.04 | O117: FALSE
B118: 2180 | C118: 20 | D118: -4.8 | E118: -4.5 | F118: 0 | G118: 4.5 | H118: 0.45 | I118: 9 | J118: 0.9 | K118: 9 | L118: 4.8 | M118: 1.152 | N118: 23.04 | O118: FALSE
B119: 2200 | C119: 20 | D119: -4.8 | E119: -4.5 | F119: 0 | G119: 4.5 | H119: 0.45 | I119: 9 | J119: 0.9 | K119: 9 | L119: 4.8 | M119: 1.152 | N119: 23.04 | O119: FALSE
B120: 2220 | C120: 20 | D120: -4.8 | E120: -4.5 | F120: 0 | G120: 4.5 | H120: 0.45 | I120: 9 | J120: 0.9 | K120: 9 | L120: 4.8 | M120: 1.152 | N120: 23.04 | O120: FALSE
B121: 2240 | C121: 20 | D121: -4.8 | E121: -4.5 | F121: 0 | G121: 4.5 | H121: 0.45 | I121: 9 | J121: 0.9 | K121: 9 | L121: 4.8 | M121: 1.152 | N121: 23.04 | O121: FALSE
B122: 2260 | C122: 20 | D122: -4.8 | E122: -4.5 | F122: 0 | G122: 4.5 | H122: 0.45 | I122: 9 | J122: 0.9 | K122: 9 | L122: 4.8 | M122: 1.152 | N122: 23.04 | O122: FALSE
B123: 2280 | C123: 20 | D123: -4.8 | E123: -4.5 | F123: 0 | G123: 4.5 | H123: 0.45 | I123: 9 | J123: 0.9 | K123: 9 | L123: 4.8 | M123: 1.152 | N123: 23.04 | O123: FALSE
B124: 2300 | C124: 20 | D124: -4.8 | E124: -4.5 | F124: 0 | G124: 4.5 | H124: 0.45 | I124: 9 | J124: 0.9 | K124: 9 | L124: 4.8 | M124: 1.152 | N124: 23.04 | O124: FALSE
B125: 2320 | C125: 20 | D125: -4.8 | E125: -4.5 | F125: 0 | G125: 4.5 | H125: 0.45 | I125: 9 | J125: 0.9 | K125: 9 | L125: 4.8 | M125: 1.152 | N125: 23.04 | O125: FALSE
B126: 2340 | C126: 20 | D126: -4.8 | E126: -4.5 | F126: 0 | G126: 4.5 | H126: 0.45 | I126: 9 | J126: 0.9 | K126: 9 | L126: 4.8 | M126: 1.152 | N126: 23.04 | O126: FALSE
B127: 2360 | C127: 20 | D127: -4.8 | E127: -4.5 | F127: 0 | G127: 4.5 | H127: 0.45 | I127: 9 | J127: 0.9 | K127: 9 | L127: 4.8 | M127: 1.152 | N127: 23.04 | O127: FALSE
B128: 2380 | C128: 20 | D128: -4.8 | E128: -4.5 | F128: 0 | G128: 4.5 | H128: 0.45 | I128: 9 | J128: 0.9 | K128: 9 | L128: 4.8 | M128: 1.152 | N128: 23.04 | O128: FALSE
B129: 2400 | C129: 20 | D129: -4.8 | E129: -4.5 | F129: 0 | G129: 4.5 | H129: 0.45 | I129: 9 | J129: 0.9 | K129: 9 | L129: 4.8 | M129: 1.152 | N129: 23.04 | O129: FALSE
B130: 2420 | C130: 20 | D130: -4.8 | E130: -4.5 | F130: 0 | G130: 4.5 | H130: 0.45 | I130: 9 | J130: 0.9 | K130: 9 | L130: 4.8 | M130: 1.152 | N130: 23.04 | O130: FALSE
B131: 2440 | C131: 20 | D131: -4.8 | E131: -4.5 | F131: 0 | G131: 4.5 | H131: 0.45 | I131: 9 | J131: 0.9 | K131: 9 | L131: 4.8 | M131: 1.152 | N131: 23.04 | O131: FALSE
B132: 2460 | C132: 20 | D132: -4.8 | E132: -4.5 | F132: 0 | G132: 4.5 | H132: 0.45 | I132: 9 | J132: 0.9 | K132: 9 | L132: 4.8 | M132: 1.152 | N132: 23.04 | O132: FALSE
B133: 2480 | C133: 20 | D133: -4.8 | E133: -4.5 | F133: 0 | G133: 4.5 | H133: 0.45 | I133: 9 | J133: 0.9 | K133: 9 | L133: 4.8 | M133: 1.152 | N133: 23.04 | O133: FALSE
B134: 2500 | C134: 20 | D134: -4.8 | E134: -4.5 | F134: 0 | G134: 4.5 | H134: 0.45 | I134: 9 | J134: 0.9 | K134: 9 | L134: 4.8 | M134: 1.152 | N134: 23.04 | O134: FALSE
B135: 2520 | C135: 20 | D135: -4.8 | E135: -4.5 | F135: 0 | G135: 4.5 | H135: 0.45 | I135: 9 | J135: 0.9 | K135: 9 | L135: 4.8 | M135: 1.152 | N135: 23.04 | O135: FALSE
B136: 2540 | C136: 20 | D136: -4.8 | E136: -4.5 | F136: 0 | G136: 4.5 | H136: 0.45 | I136: 9 | J136: 0.9 | K136: 9 | L136: 4.8 | M136: 1.152 | N136: 23.04 | O136: FALSE
B137: 2560 | C137: 20 | D137: -4.8 | E137: -4.5 | F137: 0 | G137: 4.5 | H137: =I137*0.05 -> 0.45 | I137: =-E137+G137 -> 9 | J137: =I137*0.1 -> 0.9 | K137: =I137 -> 9 | L137: 4.8 | M137: =(I137+0.6)*0.12 -> 1.152 | N137: 23.04 | O137: FALSE
B138: 2580 | C138: =B138-B137 -> 20 | D138: =E138-0.3 -> -4.8 | E138: -4.5 | F138: 0 | G138: 4.5 | H138: 0.45 | I138: 9 | J138: 0.9 | K138: 9 | L138: =G138+0.3 -> 4.8 | M138: 1.152 | N138: =((M138+M137)/2)*C138 -> 23.04 | O138: =AND(B138<=$P$3,B138>=$P$2) -> FALSE
B139: 2600 | C139: 20 | D139: -4.8 | E139: -4.5 | F139: 0 | G139: 4.5 | H139: 0.45 | I139: 9 | J139: 0.9 | K139: 9 | L139: 4.8 | M139: 1.152 | N139: 23.04 | O139: FALSE
B140: 2620 | C140: 20 | D140: -4.8 | E140: -4.5 | F140: 0 | G140: 4.5 | H140: 0.45 | I140: 9 | J140: 0.9 | K140: 9 | L140: 4.8 | M140: 1.152 | N140: 23.04 | O140: FALSE
B141: 2640 | C141: 20 | D141: -4.8 | E141: -4.5 | F141: 0 | G141: 4.5 | H141: 0.45 | I141: 9 | J141: 0.9 | K141: 9 | L141: 4.8 | M141: 1.152 | N141: 23.04 | O141: FALSE
B142: 2660 | C142: 20 | D142: -4.8 | E142: -4.5 | F142: 0 | G142: 4.5 | H142: 0.45 | I142: 9 | J142: 0.9 | K142: 9 | L142: 4.8 | M142: 1.152 | N142: 23.04 | O142: FALSE
B143: 2680 | C143: 20 | D143: -4.8 | E143: -4.5 | F143: 0 | G143: 4.5 | H143: 0.45 | I143: 9 | J143: 0.9 | K143: 9 | L143: 4.8 | M143: 1.152 | N143: 23.04 | O143: FALSE
B144: 2700 | C144: 20 | D144: -4.8 | E144: -4.5 | F144: 0 | G144: 4.5 | H144: 0.45 | I144: 9 | J144: 0.9 | K144: 9 | L144: 4.8 | M144: 1.152 | N144: 23.04 | O144: FALSE
B145: 2720 | C145: 20 | D145: -4.8 | E145: -4.5 | F145: 0 | G145: 4.5 | H145: 0.45 | I145: 9 | J145: 0.9 | K145: 9 | L145: 4.8 | M145: 1.152 | N145: 23.04 | O145: FALSE
B146: 2740 | C146: 20 | D146: -4.8 | E146: -4.5 | F146: 0 | G146: 4.5 | H146: 0.45 | I146: 9 | J146: 0.9 | K146: 9 | L146: 4.8 | M146: 1.152 | N146: 23.04 | O146: FALSE
B147: 2760 | C147: 20 | D147: -4.8 | E147: -4.5 | F147: 0 | G147: 4.5 | H147: 0.45 | I147: 9 | J147: 0.9 | K147: 9 | L147: 4.8 | M147: 1.152 | N147: 23.04 | O147: FALSE
B148: 2780 | C148: 20 | D148: -4.8 | E148: -4.5 | F148: 0 | G148: 4.5 | H148: 0.45 | I148: 9 | J148: 0.9 | K148: 9 | L148: 4.8 | M148: 1.152 | N148: 23.04 | O148: FALSE
B149: 2800 | C149: 20 | D149: -4.8 | E149: -4.5 | F149: 0 | G149: 4.5 | H149: 0.45 | I149: 9 | J149: 0.9 | K149: 9 | L149: 4.8 | M149: 1.152 | N149: 23.04 | O149: FALSE
B150: 2820 | C150: 20 | D150: -4.8 | E150: -4.5 | F150: 0 | G150: 4.5 | H150: 0.45 | I150: 9 | J150: 0.9 | K150: 9 | L150: 4.8 | M150: 1.152 | N150: 23.04 | O150: FALSE
B151: 2840 | C151: 20 | D151: -4.8 | E151: -4.5 | F151: 0 | G151: 4.5 | H151: 0.45 | I151: 9 | J151: 0.9 | K151: 9 | L151: 4.8 | M151: 1.152 | N151: 23.04 | O151: FALSE
B152: 2860 | C152: 20 | D152: -4.8 | E152: -4.5 | F152: 0 | G152: 4.5 | H152: 0.45 | I152: 9 | J152: 0.9 | K152: 9 | L152: 4.8 | M152: 1.152 | N152: 23.04 | O152: FALSE
B153: 2880 | C153: 20 | D153: -4.8 | E153: -4.5 | F153: 0 | G153: 4.5 | H153: 0.45 | I153: 9 | J153: 0.9 | K153: 9 | L153: 4.8 | M153: 1.152 | N153: 23.04 | O153: FALSE
B154: 2900 | C154: 20 | D154: -4.8 | E154: -4.5 | F154: 0 | G154: 4.5 | H154: 0.45 | I154: 9 | J154: 0.9 | K154: 9 | L154: 4.8 | M154: 1.152 | N154: 23.04 | O154: FALSE
B155: 2920 | C155: 20 | D155: -4.8 | E155: -4.5 | F155: 0 | G155: 4.5 | H155: 0.45 | I155: 9 | J155: 0.9 | K155: 9 | L155: 4.8 | M155: 1.152 | N155: 23.04 | O155: FALSE
B156: 2940 | C156: 20 | D156: -4.8 | E156: -4.5 | F156: 0 | G156: 4.5 | H156: 0.45 | I156: 9 | J156: 0.9 | K156: 9 | L156: 4.8 | M156: 1.152 | N156: 23.04 | O156: FALSE
B157: 2960 | C157: 20 | D157: -4.8 | E157: -4.5 | F157: 0 | G157: 4.5 | H157: 0.45 | I157: 9 | J157: 0.9 | K157: 9 | L157: 4.8 | M157: 1.152 | N157: 23.04 | O157: FALSE
B158: 2980 | C158: 20 | D158: -4.8 | E158: -4.5 | F158: 0 | G158: 4.5 | H158: 0.45 | I158: 9 | J158: 0.9 | K158: 9 | L158: 4.8 | M158: 1.152 | N158: 23.04 | O158: FALSE
B159: 3000 | C159: 20 | D159: -4.8 | E159: -4.5 | F159: 0 | G159: 4.5 | H159: 0.45 | I159: 9 | J159: 0.9 | K159: 9 | L159: 4.8 | M159: 1.152 | N159: 23.04 | O159: FALSE
B160: 3020 | C160: 20 | D160: -4.8 | E160: -4.5 | F160: 0 | G160: 4.5 | H160: 0.45 | I160: 9 | J160: 0.9 | K160: 9 | L160: 4.8 | M160: 1.152 | N160: 23.04 | O160: FALSE
B161: 3040 | C161: 20 | D161: -4.8 | E161: -4.5 | F161: 0 | G161: 4.5 | H161: 0.45 | I161: 9 | J161: 0.9 | K161: 9 | L161: 4.8 | M161: 1.152 | N161: 23.04 | O161: FALSE
B162: 3060 | C162: 20 | D162: -4.8 | E162: -4.5 | F162: 0 | G162: 4.5 | H162: 0.45 | I162: 9 | J162: 0.9 | K162: 9 | L162: 4.8 | M162: 1.152 | N162: 23.04 | O162: FALSE
B163: 3080 | C163: 20 | D163: -4.8 | E163: -4.5 | F163: 0 | G163: 4.5 | H163: 0.45 | I163: 9 | J163: 0.9 | K163: 9 | L163: 4.8 | M163: 1.152 | N163: 23.04 | O163: FALSE
B164: 3100 | C164: 20 | D164: -4.8 | E164: -4.5 | F164: 0 | G164: 4.5 | H164: 0.45 | I164: 9 | J164: 0.9 | K164: 9 | L164: 4.8 | M164: 1.152 | N164: 23.04 | O164: FALSE
B165: 3120 | C165: 20 | D165: -4.8 | E165: -4.5 | F165: 0 | G165: 4.5 | H165: 0.45 | I165: 9 | J165: 0.9 | K165: 9 | L165: 4.8 | M165: 1.152 | N165: 23.04 | O165: FALSE
B166: 3140 | C166: 20 | D166: -4.8 | E166: -4.5 | F166: 0 | G166: 4.5 | H166: 0.45 | I166: 9 | J166: 0.9 | K166: 9 | L166: 4.8 | M166: 1.152 | N166: 23.04 | O166: FALSE
B167: 3160 | C167: 20 | D167: -4.8 | E167: -4.5 | F167: 0 | G167: 4.5 | H167: 0.45 | I167: 9 | J167: 0.9 | K167: 9 | L167: 4.8 | M167: 1.152 | N167: 23.04 | O167: FALSE
B168: 3180 | C168: 20 | D168: -4.8 | E168: -4.5 | F168: 0 | G168: 4.5 | H168: 0.45 | I168: 9 | J168: 0.9 | K168: 9 | L168: 4.8 | M168: 1.152 | N168: 23.04 | O168: FALSE
B169: 3200 | C169: 20 | D169: -4.8 | E169: -4.5 | F169: 0 | G169: 4.5 | H169: 0.45 | I169: 9 | J169: 0.9 | K169: 9 | L169: 4.8 | M169: 1.152 | N169: 23.04 | O169: FALSE
B170: 3220 | C170: 20 | D170: -4.8 | E170: -4.5 | F170: 0 | G170: 4.5 | H170: 0.45 | I170: 9 | J170: 0.9 | K170: 9 | L170: 4.8 | M170: 1.152 | N170: 23.04 | O170: FALSE
B171: 3240 | C171: 20 | D171: -4.8 | E171: -4.5 | F171: 0 | G171: 4.5 | H171: 0.45 | I171: 9 | J171: 0.9 | K171: 9 | L171: 4.8 | M171: 1.152 | N171: 23.04 | O171: FALSE
B172: 3260 | C172: 20 | D172: -4.8 | E172: -4.5 | F172: 0 | G172: 4.5 | H172: 0.45 | I172: 9 | J172: 0.9 | K172: 9 | L172: 4.8 | M172: 1.152 | N172: 23.04 | O172: FALSE
B173: 3280 | C173: 20 | D173: -4.8 | E173: -4.5 | F173: 0 | G173: 4.5 | H173: 0.45 | I173: 9 | J173: 0.9 | K173: 9 | L173: 4.8 | M173: 1.152 | N173: 23.04 | O173: FALSE
B174: 3300 | C174: 20 | D174: -5.79 | E174: -5.49 | F174: 0 | G174: 5.49 | H174: 0.549 | I174: 10.98 | J174: 1.098 | K174: 10.98 | L174: 5.79 | M174: 1.3896 | N174: 25.416 | O174: FALSE
B175: 3320 | C175: 20 | D175: -6.05 | E175: -5.75 | F175: 0 | G175: 5.749 | H175: 0.57495 | I175: 11.499 | J175: 1.1499 | K175: 11.499 | L175: 6.049 | M175: 1.45188 | N175: 28.4148 | O175: FALSE
B176: 3340 | C176: 20 | D176: -6.053 | E176: -5.753 | F176: 0 | G176: 5.746 | H176: 0.57495 | I176: 11.499 | J176: 1.1499 | K176: 11.499 | L176: 6.046 | M176: 1.45188 | N176: 29.0376 | O176: FALSE
B177: 3360 | C177: 20 | D177: -5.239 | E177: -4.939 | F177: 0 | G177: 4.935 | H177: 0.4937 | I177: 9.874 | J177: 0.9874 | K177: 9.874 | L177: 5.235 | M177: 1.25688 | N177: 27.0876 | O177: FALSE
B178: 3380 | C178: 20 | D178: -4.861 | E178: -4.561 | F178: 0 | G178: 4.5 | H178: 0.45305 | I178: 9.061 | J178: 0.9061 | K178: 9.061 | L178: 4.8 | M178: 1.15932 | N178: 24.162 | O178: FALSE
B179: 3400 | C179: 20 | D179: -4.953 | E179: -4.653 | F179: 0 | G179: 4.5 | H179: 0.45765 | I179: 9.153 | J179: 0.9153 | K179: 9.153 | L179: 4.8 | M179: 1.17036 | N179: 23.2968 | O179: FALSE
B180: 3420 | C180: 20 | D180: -5.045 | E180: -4.745 | F180: 0 | G180: 4.5 | H180: 0.46225 | I180: 9.245 | J180: 0.9245 | K180: 9.245 | L180: 4.8 | M180: 1.1814 | N180: 23.5176 | O180: FALSE
B181: 3440 | C181: 20 | D181: -5.137 | E181: -4.837 | F181: 0 | G181: 4.5 | H181: 0.46685 | I181: 9.337 | J181: 0.9337 | K181: 9.337 | L181: 4.8 | M181: 1.19244 | N181: 23.7384 | O181: FALSE
B182: 3460 | C182: 20 | D182: -5.228 | E182: -4.928 | F182: 0 | G182: 4.5 | H182: 0.4714 | I182: 9.428 | J182: 0.9428 | K182: 9.428 | L182: 4.8 | M182: 1.20336 | N182: 23.958 | O182: FALSE
B183: 3480 | C183: 20 | D183: -5.319 | E183: -5.019 | F183: 0 | G183: 4.5 | H183: 0.47595 | I183: 9.519 | J183: 0.9519 | K183: 9.519 | L183: 4.8 | M183: 1.21428 | N183: 24.1764 | O183: FALSE
B184: 3500 | C184: 20 | D184: -5.35 | E184: -5.05 | F184: 0 | G184: 4.5 | H184: 0.4775 | I184: 9.55 | J184: 0.955 | K184: 9.55 | L184: 4.8 | M184: 1.218 | N184: 24.3228 | O184: FALSE
B185: 3520 | C185: 20 | D185: -5.35 | E185: -5.05 | F185: 0 | G185: 4.5 | H185: 0.4775 | I185: 9.55 | J185: 0.955 | K185: 9.55 | L185: 4.8 | M185: 1.218 | N185: 24.36 | O185: FALSE
B186: 3540 | C186: 20 | D186: -5.35 | E186: -5.05 | F186: 0 | G186: 4.5 | H186: 0.4775 | I186: 9.55 | J186: 0.955 | K186: 9.55 | L186: 4.8 | M186: 1.218 | N186: 24.36 | O186: FALSE
B187: 3560 | C187: 20 | D187: -6.137 | E187: -5.837 | F187: 0 | G187: 4.5 | H187: 0.51685 | I187: 10.337 | J187: 1.0337 | K187: 10.337 | L187: 4.8 | M187: 1.31244 | N187: 25.3044 | O187: FALSE
B188: 3580 | C188: 20 | D188: -7.543 | E188: -7.243 | F188: 0 | G188: 4.5 | H188: 0.58715 | I188: 11.743 | J188: 1.1743 | K188: 11.743 | L188: 4.8 | M188: 1.48116 | N188: 27.936 | O188: FALSE
B189: 3600 | C189: 20 | D189: -8.449 | E189: -8.149 | F189: 0 | G189: 4.5 | H189: 0.63245 | I189: 12.649 | J189: 1.2649 | K189: 12.649 | L189: 4.8 | M189: 1.58988 | N189: 30.7104 | O189: FALSE
B190: 3620 | C190: 20 | D190: -8.859 | E190: -8.559 | F190: 0 | G190: 4.5 | H190: 0.65295 | I190: 13.059 | J190: 1.3059 | K190: 13.059 | L190: 4.8 | M190: 1.63908 | N190: 32.2896 | O190: FALSE
B191: 3640 | C191: 20 | D191: -8.872 | E191: -8.572 | F191: 0 | G191: 4.5 | H191: 0.6536 | I191: 13.072 | J191: 1.3072 | K191: 13.072 | L191: 4.8 | M191: 1.64064 | N191: 32.7972 | O191: FALSE
B192: 3660 | C192: 20 | D192: -8.863 | E192: -8.563 | F192: 0 | G192: 4.5 | H192: 0.65315 | I192: 13.063 | J192: 1.3063 | K192: 13.063 | L192: 4.8 | M192: 1.63956 | N192: 32.802 | O192: FALSE
B193: 3680 | C193: 20 | D193: -8.85 | E193: -8.55 | F193: 0 | G193: 4.5 | H193: 0.6525 | I193: 13.05 | J193: 1.305 | K193: 13.05 | L193: 4.8 | M193: 1.638 | N193: 32.7756 | O193: FALSE
B194: 3700 | C194: 20 | D194: -8.85 | E194: -8.55 | F194: 0 | G194: 4.5 | H194: 0.6525 | I194: 13.05 | J194: 1.305 | K194: 13.05 | L194: 4.8 | M194: 1.638 | N194: 32.76 | O194: FALSE
B195: 3720 | C195: 20 | D195: -8.85 | E195: -8.55 | F195: 0 | G195: 4.5 | H195: 0.6525 | I195: 13.05 | J195: 1.305 | K195: 13.05 | L195: 4.8 | M195: 1.638 | N195: 32.76 | O195: FALSE
B196: 3740 | C196: 20 | D196: -8.85 | E196: -8.55 | F196: 0 | G196: 4.5 | H196: 0.6525 | I196: 13.05 | J196: 1.305 | K196: 13.05 | L196: 4.8 | M196: 1.638 | N196: 32.76 | O196: FALSE
B197: 3760 | C197: 20 | D197: -8.85 | E197: -8.55 | F197: 0 | G197: 4.5 | H197: 0.6525 | I197: 13.05 | J197: 1.305 | K197: 13.05 | L197: 4.8 | M197: 1.638 | N197: 32.76 | O197: FALSE
B198: 3780 | C198: 20 | D198: -8.85 | E198: -8.55 | F198: 0 | G198: 4.5 | H198: 0.6525 | I198: 13.05 | J198: 1.305 | K198: 13.05 | L198: 4.8 | M198: 1.638 | N198: 32.76 | O198: FALSE
B199: 3800 | C199: 20 | D199: -8.85 | E199: -8.55 | F199: 0 | G199: 4.5 | H199: 0.6525 | I199: 13.05 | J199: 1.305 | K199: 13.05 | L199: 4.8 | M199: 1.638 | N199: 32.76 | O199: FALSE
B200: 3820 | C200: 20 | D200: -9.27 | E200: -8.97 | F200: 0 | G200: 4.5 | H200: 0.6735 | I200: 13.47 | J200: 1.347 | K200: 13.47 | L200: 4.8 | M200: 1.6884 | N200: 33.264 | O200: FALSE
B201: 3840 | C201: 20 | D201: -9.6 | E201: -9.3 | F201: 0 | G201: 4.5 | H201: =I201*0.05 -> 0.69 | I201: =-E201+G201 -> 13.8 | J201: =I201*0.1 -> 1.38 | K201: =I201 -> 13.8 | L201: 4.8 | M201: =(I201+0.6)*0.12 -> 1.728 | N201: 34.164 | O201: FALSE
B202: 3860 | C202: =B202-B201 -> 20 | D202: =E202-0.3 -> -9.6 | E202: -9.3 | F202: 0 | G202: 4.5 | H202: 0.69 | I202: 13.8 | J202: 1.38 | K202: 13.8 | L202: =G202+0.3 -> 4.8 | M202: 1.728 | N202: =((M202+M201)/2)*C202 -> 34.56 | O202: =AND(B202<=$P$3,B202>=$P$2) -> FALSE
B203: 3880 | C203: 20 | D203: -9.625 | E203: -9.325 | F203: 0 | G203: 4.5 | H203: 0.69125 | I203: 13.825 | J203: 1.3825 | K203: 13.825 | L203: 4.8 | M203: 1.731 | N203: 34.59 | O203: FALSE
B204: 3900 | C204: 20 | D204: -9.319 | E204: -9.019 | F204: 0 | G204: 4.5 | H204: 0.67595 | I204: 13.519 | J204: 1.3519 | K204: 13.519 | L204: 4.8 | M204: 1.69428 | N204: 34.2528 | O204: FALSE
B205: 3920 | C205: 20 | D205: -10.428 | E205: -10.128 | F205: 0 | G205: 4.602 | H205: 0.7365 | I205: 14.73 | J205: 1.473 | K205: 14.73 | L205: 4.902 | M205: 1.8396 | N205: 35.3388 | O205: FALSE
B206: 3940 | C206: 20 | D206: -11.017 | E206: -10.717 | F206: 0 | G206: 5.303 | H206: 0.801 | I206: 16.02 | J206: 1.602 | K206: 16.02 | L206: 5.603 | M206: 1.9944 | N206: 38.34 | O206: FALSE
... 295 more rows
